[Event "Croatian Team Cup Final 2022"]
[Site "Vodice"]
[Date "2022.05.21"]
[Round "5.14"]
[White "Bilobrk, Franjo"]
[Black "Segovic, Goran"]
[Result "0-1"]
[ECO "E52"]
[WhiteElo "2347"]
[BlackElo "2291"]
[Annotator "TA"]
[PlyCount "86"]
[EventDate "2022.05.18"]
[EventType "team-tourn"]
[EventCountry "CRO"]
[SourceTitle "playchess.com"]
[Source "ChessBase"]
[SourceQuality "1"]
[TimeControl "40/5400+30:1800+30"]

{[%evp 17,86,0,13,9,22,30,27,14,10,0,0,0,0,-8,0,0,0,0,61,63,69,47,95,65,72,70,65,60,68,0,2,0,0,0,0,-20,12,16,47,35,36,0,0,-5,0,0,0,-104,-102,-450,-474,-673,-8,-564,-691,-674,-679,-620,-670,-672,-663,-623,-617,-604,-590,-1181,-1173,-1127,-1074,-5506,-1676]} 1. d4 {[%emt 0:04:36]} Nf6 {[%emt 0:00:08]} 2. c4 {[%emt 0:00:05]} e6 {[%emt 0:00:06]} 3. Nc3 {[%emt 0:00:04]} Bb4 {[%emt 0:00:21]} 4. e3 {[%emt 0:00:10]} O-O {[%emt 0:02:09]} 5. Bd2 {[%emt 0:00:03]} b6 {[%emt 0:03:05]} 6. Nf3 {[%emt 0:01:11]} Bb7 {[%emt 0:00:43]} 7. Bd3 {[%emt 0:00:12]} d5 {[%emt 0:03:02]} 8. cxd5 {[%emt 0:01:32] 8.cxd5 is better than 8.0-0.} exd5 {[%emt 0:00:50]} 9. O-O {[%emt 0:00:29]} a6 {[%emt 0:02:54]} 10. Ne5 {[%emt 0:01:35] E52: Nimzo-Indian: Rubinstein: 4...0-0 5 Nf3 d5 6 Bd3 b6.} Bd6 {[%emt 0:07:15]} 11. f4 {[%emt 0:01:17]} c5 {[%emt 0:02:57]} 12. Rc1 {[%emt 0:12:51] White has an edge.} Nc6 {[%emt 0:05:18]} 13. Be1 {[%emt 0:04:34]} cxd4 {[%emt 0:05:41]} 14. Nxc6 {[%emt 0:01:35]} Bxc6 {[%emt 0:01:29]} 15. Ne2 {[%emt 0:01:16][%cal Bc3e2,Be2d4,Bd4f5][%mdl 32]} Bb5 {[%emt 0:09:47]} 16. Nxd4 {[%emt 0:01:54]} Bxd3 {[%emt 0:00:21]} 17. Qxd3 {[%emt 0:00:03] [#]} Qd7 $146 {[%emt 0:05:40]} (17... Re8 $11) ({Predecessor:} 17... Ne4 18. Nf5 g6 19. Nh6+ Kg7 20. Qxd5 Qe7 21. Ng4 Rad8 22. Rc4 Rfe8 23. Rxe4 Qxe4 {0-1 (49) Praggnanandhaa,R (2608)-Liang,A (2592) chess24.com INT 2021}) 18. Nf5 $1 $14 {[%emt 0:04:13]} Rfe8 {[%emt 0:21:40]} 19. Bc3 {[%emt 0:00:25]} d4 {[%emt 0:07:32]} (19... Be7 $14) 20. Bxd4 {[%emt 0:00:28]} Bc5 {[%emt 0:00:49]} 21. Rfd1 {[%emt 0:09:02][%cal Of5g7]} ({Avoid the trap} 21. Nxg7 $2 Rxe3 $3 {[%mdl 512]} 22. Qc4 (22. Qxe3 $2 Bxd4 23. Nf5 Bxe3+ $19) 22... Bxd4 $19) 21... Rad8 {[%emt 0:00:37]} 22. Qc2 {[%emt 0:11:53]} Bxd4 {[%emt 0:01:10]} 23. Rxd4 {[%emt 0:01:12]} ({Better is} 23. Nxd4 $14 Qe7 24. Rd3) 23... Qe6 $11 {[%emt 0:01:02]} 24. Rxd8 {[%emt 0:12:24]} Rxd8 {[%emt 0:00:13]} 25. Re1 {[%emt 0:06:03]} g6 {[%emt 0:03:28]} 26. Qc7 {[%emt 0:03:34]} Rd2 {[%emt 0:00:53]} 27. Qc3 {[%emt 0:00:44] And now Nh6+ would win.} Rd8 {[%emt 0:05:07]} 28. Nd4 {[%emt 0:06:43]} Qxa2 {[%emt 0:03:16]} 29. e4 {[%emt 0:09:39]} (29. Qc7 $5 {[%cal Rc7d8]} Re8 30. Qxb6 $14) 29... Qa4 {[%emt 0:02:20]} 30. b4 {[%emt 0:02:33]} Qd7 {[%emt 0:01:13]} 31. Nc6 {[%emt 0:00:24]} Qd2 {[%emt 0:00:44]} 32. Qa1 {[%emt 0:01:08]} (32. Qxd2 $11 Rxd2 33. g3) 32... Re8 $17 {[%emt 0:01:34] White must now prevent ...Ng4.} 33. e5 $2 {[%emt 0:01:25][%mdl 8192]} (33. Qc1 $17 {is more resistant.} Qxc1 34. Rxc1) 33... Ng4 $19 {[%emt 0:00:16][%cal Bf6g4,Bg4f2,Bf2d3][%mdl 32] aiming for ...Qf2+.} 34. Qc1 {[%emt 0:00:34]} (34. Rf1 $142 Qe3+ 35. Kh1 Nf2+ 36. Rxf2 (36. Kg1 $2 {leads to mate.} Nh3+ 37. Kh1 Qg1+ 38. Rxg1 Nf2#) 36... Qxf2 37. Qc1) 34... Qf2+ $40 {[%emt 0:00:36][%mdl 128] Black has some attack.} ({Stronger than} 34... Qa2 35. h3 Qf2+ 36. Kh1 $11) 35. Kh1 {[%emt 0:00:05] [#]} Qh4 $1 {[%emt 0:00:23][%csl Gg4][%cal Rh4h2] Black is clearly winning.} 36. h3 {[%emt 0:00:56]} Nf2+ {[%emt 0:00:14]} 37. Kh2 {[%emt 0:00:18] [#]} Nd3 $1 {[%emt 0:01:52][%csl LRc1,LRe1,LRf4]} 38. g3 {[%emt 0:00:25]} Qh5 {[%emt 0:00:20]} 39. Qe3 {[%emt 0:01:09]} Nxe1 {[%emt 0:00:15]} 40. Qxe1 {[%emt 0:00:00]} Qf3 {[%emt 0:00:00]} 41. b5 {[%emt 0:01:42]} axb5 {[%emt 0:01:02]} 42. Nd4 {[%emt 0:00:44]} Qd3 {[%emt 0:01:01]} 43. Qb4 {[%emt 0:00:29]} Ra8 {[%emt 0:01:01] Weighted Error Value: White=0.70/Black=0.07 (flawless)} (43... Rd8 $142 44. Qxb5 Qxd4) 0-1

[Event "Croatian Team Cup Final 2022"]
[Site "Vodice"]
[Date "2022.05.21"]
[Round "5.15"]
[White "Zadravec, Matija"]
[Black "Sinanovic, Muhamed"]
[Result "0-1"]
[ECO "B43"]
[WhiteElo "2263"]
[BlackElo "2300"]
[Annotator "TA"]
[PlyCount "92"]
[EventDate "2022.05.18"]
[EventType "team-tourn"]
[EventCountry "CRO"]
[SourceTitle "playchess.com"]
[Source "ChessBase"]
[SourceQuality "1"]
[TimeControl "40/5400+30:1800+30"]

{[%evp 13,92,21,27,-15,137,46,34,42,37,38,62,43,62,79,73,28,35,35,38,35,22,29,202,202,200,180,189,177,166,133,183,187,329,322,458,444,595,595,595,564,564,530,469,292,285,278,263,263,263,248,255,255,237,0,99,99,99,51,51,16,215,215,215,-959,-841,-830,-814,-1582,-1431,-1190,-1037,-29987,-29988,-29988,-29989,-29989,-29990,-29990,-29991,-29998,-29999]} 1. e4 {[%emt 0:00:06]} c5 {[%emt 0:02:02]} 2. Nc3 {[%emt 0:00:37]} e6 {[%emt 0:02:50]} 3. Nge2 {[%emt 0:00:10]} a6 {[%emt 0:01:04]} 4. g3 {[%emt 0:00:36]} b5 {[%emt 0:08:31]} 5. Bg2 {[%emt 0:00:13]} Bb7 {[%emt 0:00:10]} 6. d4 {[%emt 0:02:19]} cxd4 {[%emt 0:00:09]} 7. Nxd4 {[%emt 0:00:09]} Nf6 {[%emt 0:01:11]} 8. O-O {[%emt 0:02:24] B43: Sicilian: Kan Variation: 5 Nc3.} Bb4 $2 {[%emt 0:14:33]} (8... b4 $11 9. e5 Bxg2 10. Kxg2 bxc3 11. exf6 Qxf6) 9. e5 {[%emt 0:10:48]} (9. a4 $16) 9... Bxg2 $14 {[%emt 0:00:13]} 10. Kxg2 {[%emt 0:00:03] White is slightly better.} Bxc3 {[%emt 0:05:33]} 11. bxc3 {[%emt 0:01:19]} Nd5 {[%emt 0:00:38]} 12. Qg4 {[%emt 0:00:37]} Kf8 {[%emt 0:02:37]} 13. a4 {[%emt 0:09:11]} Nc6 {[%emt 0:02:39]} 14. Nxc6 {[%emt 0:04:04]} dxc6 {[%emt 0:00:07] [#]} 15. h4 $146 {[%emt 0:05:55]} ({Predecessor:} 15. c4 h5 16. Qd4 bxc4 17. Qxc4 Kg8 18. Qc5 Qb8 19. Re1 Qb4 20. Ba3 Qg4 21. f3 Nf4+ 22. Kf2 Nh3+ 23. Kg2 Nf4+ 24. Kf2 Nh3+ 25. Kg2 {½-½ (25) Berger,S (2278)-Murdzia,P (2446) Hamburg 2003}) 15... h5 {[%emt 0:04:14]} 16. Qe4 {[%emt 0:01:06]} Kg8 {[%emt 0:01:27]} 17. c4 $36 {[%emt 0:03:23][%mdl 2048] White is more active.} Nb6 $2 {[%emt 0:10:52]} (17... bxc4 $11 {and Black has nothing to worry.} 18. Qxc4 c5) 18. Bg5 {[%emt 0:04:56]} ({Worse is} 18. Qxc6 Rc8 19. Qd6 Nxc4 20. Qxd8+ Rxd8 $11) 18... Qe8 {[%emt 0:03:57]} 19. axb5 {[%emt 0:06:01]} cxb5 {[%emt 0:03:27]} 20. cxb5 {[%emt 0:07:54]} axb5 {[%emt 0:00:39]} 21. Rfb1 {[%emt 0:03:19][%cal Bf1b1,Bb1a1,Ba1a7][%mdl 32]} Rxa1 {[%emt 0:07:49]} (21... Rc8 $16) 22. Rxa1 $18 {[%emt 0:01:05]} Nd5 {[%emt 0:00:03]} (22... Qc8 $142 23. Qf3 Qxc2) 23. Ra7 {[%emt 0:02:05]} g6 {[%emt 0:07:15]} (23... Qc6 $142 24. Kg1 (24. Qf3 Nb4 $16) 24... Qc8) 24. Bf6 {[%emt 0:01:56] Hoping for Qf3.} Kh7 {[%emt 0:03:30]} 25. Bxh8 {[%emt 0:03:22]} Kxh8 {[%emt 0:00:03][%mdl 4096] Endgame KQR-KQN} 26. c4 {[%emt 0:01:56]} bxc4 {[%emt 0:00:20]} 27. Qxc4 {[%emt 0:00:09]} Kg7 {[%emt 0:00:55]} 28. Qa6 {[%emt 0:02:43] And now Qb7 would win.} Ne7 {[%emt 0:04:09]} 29. Rc7 {[%emt 0:03:19] Inhibits Qc6+. aiming for Qb7.} Nf5 {[%emt 0:03:20]} 30. Qb7 {[%emt 0:03:14] Black must now prevent Kh3.} Nh6 {[%emt 0:01:14]} 31. Rd7 {[%emt 0:07:40] Against Qd8} Qf8 {[%emt 0:05:03]} 32. Re7 $1 {[%emt 0:01:56]} Ng4 {[%emt 0:01:06]} 33. f4 $2 {[%emt 0:02:33]} (33. Qa7 $1 $18) 33... Ne3+ {[%emt 0:01:37] [#]} (33... Kg8 $11 {remains equal.}) 34. Kh3 $1 $16 {[%emt 0:00:39] Qa7 is the strong threat.} Nf5 {[%emt 0:00:45] [#]} 35. Rd7 {[%emt 0:01:58]} (35. Rc7 $1 $16) 35... Nh6 $1 $14 {[%emt 0:00:13]} 36. Qc6 {[%emt 0:01:54] Against Qc5. Strongly threatening Qxe6.} Qa3 $2 {[%emt 0:02:31]} (36... Qe8 $11 {and Black is okay.}) 37. Qxe6 $1 $18 {[%emt 0:01:52] White threatens Qf6+ and mate.} Qf3 {[%emt 0:00:14][%cal Rf3h1]} 38. Qa2 $4 {[%emt 0:01:54][%mdl 8192]} (38. Qf6+ $18 Kh7 39. Rxf7+ Nxf7 40. Qxf7+ Kh6 41. Qa2) 38... Qg4+ $19 {[%emt 0:00:12]} 39. Kg2 {[%emt 0:00:19]} Qxd7 {[%emt 0:00:05]} 40. Qb2 {[%emt 0:00:00]} Qd5+ {[%emt 0:00:00]} 41. Kg1 {[%emt 0:01:40]} Kh7 {[%emt 0:01:13] Threatens to win with ...Ng4.} 42. Qc3 {[%emt 0:02:56]} Qd1+ {[%emt 0:00:28] Black mates.} 43. Kg2 {[%emt 0:00:05]} Qe2+ {[%emt 0:00:06]} 44. Kg1 {[%emt 0:02:11]} Ng4 {[%emt 0:00:11]} 45. Qc5 {[%emt 0:02:58]} Ne3 {[%emt 0:00:21][%csl Ge3][%cal Re2g2]} 46. Qc6 {[%emt 0:00:55]} Qf1+ {[%emt 0:00:08] Weighted Error Value: White=0.65/Black=0.41} 0-1

[Event "Croatian Team Cup Final 2022"]
[Site "Vodice"]
[Date "2022.05.21"]
[Round "5.16"]
[White "Zelic, Mladen"]
[Black "Makovec, Bruno"]
[Result "0-1"]
[ECO "B14"]
[WhiteElo "2247"]
[BlackElo "2215"]
[Annotator "TA"]
[PlyCount "64"]
[EventDate "2022.05.18"]
[EventType "team-tourn"]
[EventCountry "CRO"]
[SourceTitle "playchess.com"]
[Source "ChessBase"]
[SourceQuality "1"]
[TimeControl "40/5400+30:1800+30"]

{[%evp 25,64,-11,0,-44,-39,-37,-37,-39,-23,-29,-12,-119,-125,-175,-124,-112,-117,-117,-109,-107,-100,-182,-173,-313,-86,-80,-72,-72,-66,-68,-31,-206,-176,-497,-463,-1250,-1221,-1096,-722,-29981,-911]} 1. e4 {[%emt 0:02:41]} c6 {[%emt 0:00:10]} 2. d4 {[%emt 0:00:10]} d5 {[%emt 0:00:16]} 3. exd5 {[%emt 0:00:25]} cxd5 {[%emt 0:00:03]} 4. c4 {[%emt 0:00:11]} Nf6 {[%emt 0:03:26]} 5. Nc3 {[%emt 0:00:17]} g6 {[%emt 0:01:40]} 6. Qb3 {[%emt 0:02:00]} Bg7 {[%emt 0:03:20]} 7. cxd5 {[%emt 0:01:03]} O-O {[%emt 0:00:51]} 8. Be2 {[%emt 0:01:49]} Nbd7 {[%emt 0:10:03]} 9. Bf3 {[%emt 0:00:31]} Nb6 {[%emt 0:03:03]} 10. Nge2 {[%emt 0:00:12]} Bg4 {[%emt 0:05:42]} 11. Bxg4 {[%emt 0:03:29]} Nxg4 {[%emt 0:01:26]} 12. Bf4 {[%emt 0:00:50] 12.0-0 gains popularity.} Nf6 {[%emt 0:05:15]} 13. d6 {[%emt 0:21:54]} exd6 {[%emt 0:03:50]} 14. d5 {[%emt 0:00:48] B14: Caro-Kann: Panov-Botvinnik Attack with 5...e6 and 5...g6.} Re8 {[%emt 0:04:22]} 15. Rd1 {[%emt 0:08:42]} Ne4 {[%emt 0:13:40]} 16. O-O {[%emt 0:04:01] Black is slightly better.} Nc5 {[%emt 0:02:25] [#]} 17. Qb4 $146 {[%emt 0:13:41]} ({Predecessor:} 17. Qc2 Rc8 18. Be3 Rxe3 19. fxe3 Nc4 20. Rf3 Qe7 21. Kf2 Re8 22. Qc1 Ne5 23. e4 Nxf3 24. gxf3 {0-1 (39) Vorobjov,D (2242)-Dmitrenko,V (2362) Kostroma 2007}) 17... a6 {[%emt 0:04:06]} 18. a4 {[%emt 0:03:24]} (18. b3 $11) 18... Nbxa4 $17 {[%emt 0:05:20]} 19. Nxa4 {[%emt 0:14:07]} (19. Be3 $17 {keeps fighting.} a5 20. Qa3 Nxc3 21. Nxc3) 19... Nxa4 {[%emt 0:01:32]} ({Not} 19... Rxe2 20. Nxc5 dxc5 21. Qxb7 $11) (19... Re4 $19 20. Qd2 Rxa4) 20. Qxa4 {[%emt 0:04:10]} Rxe2 {[%emt 0:01:38]} 21. b3 {[%emt 0:00:39]} b5 {[%emt 0:10:00]} 22. Qb4 {[%emt 0:01:30]} Be5 {[%emt 0:01:02]} 23. Be3 {[%emt 0:00:30]} (23. Bxe5 $17 Rxe5 24. h3) 23... Qd7 $19 {[%emt 0:03:10]} 24. Rc1 {[%emt 0:06:09]} (24. Qa3 $142) 24... Rc8 $2 {[%emt 0:01:07]} (24... a5 $19 {is more deadly.} 25. Qh4 a4 26. bxa4 bxa4) 25. Qa5 $17 {[%emt 0:00:23]} Bb2 {[%emt 0:07:10] Black is more active.} (25... Qf5 {keeps more tension.} 26. Qxa6 Rxc1 27. Rxc1 Qe4) 26. Rxc8+ {[%emt 0:02:26]} Qxc8 {[%emt 0:00:01]} 27. Qb6 {[%emt 0:00:14]} Be5 {[%emt 0:01:09] And now ...h5 would win.} (27... Ba3 $5 {[%cal Ra3c5]}) 28. g3 $2 {[%emt 0:03:28] This move loses the game for White.} (28. Bh6 $1 $15) 28... Kg7 {[%emt 0:03:21] ...Qc3 is the strong threat.} 29. f4 $2 {[%emt 0:03:24]} (29. Bd4 {is a better chance.}) 29... Bf6 $19 {[%emt 0:03:11] [#] Threatens to win with ...Qc3.} ({Worse is} 29... Qh3 30. Bf2 Bf6 31. Qxa6 $17) 30. Rc1 {[%emt 0:00:37] Inhibits Qc3.} (30. Rf2 $142 Qc2 31. Rxe2 Qxe2 32. h4) 30... Qf5 {[%emt 0:00:49]} 31. Bf2 {[%emt 0:00:32]} Qxd5 {[%emt 0:00:16]} 32. Qxa6 {[%emt 0:01:37] [#]} Rxf2 $1 {[%emt 0:01:00][%mdl 512] Weighted Error Value: White=1.15/Black=0.46} 0-1

[Event "Croatian Team Cup Final 2022"]
[Site "Vodice"]
[Date "2022.05.21"]
[Round "5.17"]
[White "Jovanovic, Zoran"]
[Black "Trbojevic, Mladen"]
[Result "1-0"]
[ECO "B00"]
[WhiteElo "2523"]
[BlackElo "2337"]
[Annotator "TA"]
[PlyCount "63"]
[EventDate "2022.05.18"]
[EventType "team-tourn"]
[EventCountry "CRO"]
[SourceTitle "playchess.com"]
[Source "ChessBase"]
[SourceQuality "1"]
[TimeControl "40/5400+30:1800+30"]

{[%evp 9,63,40,41,46,39,37,38,34,69,68,70,74,154,94,151,141,333,334,327,291,329,325,335,328,401,371,371,347,357,361,361,363,464,306,312,298,358,272,325,239,436,393,388,388,426,422,473,481,475,326,360,360,357,343,785,777]} 1. e4 {[%emt 0:01:46]} Nc6 {[%emt 0:00:21]} 2. Nf3 {[%emt 0:00:14]} d6 {[%emt 0:00:24]} 3. d4 {[%emt 0:00:11]} Nf6 {[%emt 0:00:11]} 4. Nc3 {[%emt 0:00:04]} g6 {[%emt 0:00:11]} 5. Be3 {[%emt 0:00:04]} a6 {[%emt 0:02:31]} 6. d5 {[%emt 0:09:14] B00: Queen's Fianchetto Defence, Nimzowitsch Defence.} Nb8 {[%emt 0:00:34] [#]} 7. Qd2 $146 {[%emt 0:03:12]} ({Predecessor:} 7. h3 Bg7 8. Qd2 c6 9. Bh6 O-O 10. g4 b5 11. Bxg7 Kxg7 12. g5 Nh5 13. O-O-O cxd5 14. Nxd5 {1-0 (31) Green,A (2127)-Mortazavi,A (2353) Chess.com INT 2018}) 7... b5 {[%emt 0:01:15]} 8. a3 {[%emt 0:04:58] White is slightly better.} Bg7 {[%emt 0:00:18]} 9. Bh6 {[%emt 0:04:14]} O-O {[%emt 0:01:15]} 10. h4 {[%emt 0:06:06][%cal Oh4h5]} Bg4 {[%emt 0:06:34] [#]} ({Black should try} 10... Bxh6 11. Qxh6 Ng4) 11. Nh2 {[%emt 0:08:02] White is more active.} (11. h5 $142 $1) 11... Bd7 {[%emt 0:27:16]} (11... Bxh6 $142 12. Qxh6 e5) 12. h5 $16 {[%emt 0:01:39]} a5 $2 {[%emt 0:14:59]} (12... Nxh5 $16 {is a better defense.} 13. Be2 e5) 13. hxg6 $18 {[%emt 0:09:20]} fxg6 {[%emt 0:00:20]} 14. Bxg7 {[%emt 0:00:39]} Kxg7 {[%emt 0:00:13]} 15. Nf3 {[%emt 0:00:02]} (15. Bxb5 Qe8 $18) (15. Nxb5 Nxe4 16. Qd4+ Nf6 $11) 15... Kg8 {[%emt 0:01:12]} 16. Qh6 {[%emt 0:06:34]} e6 {[%emt 0:04:41]} 17. dxe6 {[%emt 0:05:26]} Bxe6 {[%emt 0:00:34]} 18. Bxb5 {[%emt 0:01:29]} ({Resist} 18. Ng5 Qe7 19. Nxb5 Na6 $18) 18... Qe7 {[%emt 0:00:26]} 19. Ng5 {[%emt 0:05:10]} c6 {[%emt 0:02:39]} 20. Ba4 {[%emt 0:01:55]} Ra7 {[%emt 0:00:37]} 21. f3 {[%emt 0:02:42]} Bc4 {[%emt 0:00:58]} 22. O-O-O {[%emt 0:01:44][%cal Ba1d1,Bd1d4,Bd4d5][%mdl 32]} Qe5 {[%emt 0:02:22]} 23. Nh3 {[%emt 0:00:27]} d5 {[%emt 0:07:44]} 24. Qg5 {[%emt 0:01:23]} Qc7 {[%emt 0:01:39]} (24... Re7 25. Qxe5 Rxe5) 25. exd5 {[%emt 0:00:49]} Nxd5 {[%emt 0:02:39]} 26. Qh4 {[%emt 0:05:38]} ({Less strong is} 26. Nxd5 Bxd5 27. Qh4 Qe7 $18) 26... Nb6 {[%emt 0:03:04]} 27. Rd4 {[%emt 0:00:19]} Nxa4 {[%emt 0:07:46]} 28. Nxa4 {[%emt 0:01:22]} ({Not} 28. Rxc4 Nxc3 29. Rxc3 Qe5 $18) 28... Bd5 {[%emt 0:06:10]} 29. Nf4 {[%emt 0:01:53][%cal Of4g6] [#] Nxg6! is the strong threat. Pair of Knights!} Qg7 {[%emt 0:01:40]} 30. Nxd5 {[%emt 0:01:07]} cxd5 {[%emt 0:00:09]} 31. Rxd5 {[%emt 0:00:05]} Nc6 $2 {[%emt 0:00:13]} (31... Qf7) 32. Qc4 {[%emt 0:00:08][%csl LRa5,LRc6] Black got outplayed after the opening.  Weighted Error Value: White=0.24 (precise) /Black=0.44} 1-0

[Event "Croatian Team Cup Final 2022"]
[Site "Vodice"]
[Date "2022.05.21"]
[Round "5.19"]
[White "Blazeka, Matej"]
[Black "Tomasic, Roland"]
[Result "1-0"]
[ECO "B50"]
[WhiteElo "2333"]
[BlackElo "2108"]
[Annotator "TA"]
[PlyCount "112"]
[EventDate "2022.05.18"]
[EventType "team-tourn"]
[EventCountry "CRO"]
[SourceTitle "playchess.com"]
[Source "ChessBase"]
[SourceQuality "1"]
[TimeControl "40/5400+30:1800+30"]

{[%evp 10,112,31,7,25,21,20,22,44,21,104,100,100,99,99,88,84,30,71,72,119,117,119,120,128,128,127,125,197,189,195,188,191,199,222,135,114,108,164,162,161,162,156,114,114,114,129,129,131,122,149,172,155,144,166,179,177,169,165,156,170,180,193,162,204,193,193,194,214,208,239,224,254,239,248,251,243,242,301,301,414,417,410,372,1238,919,2712,2177,3342,3200,29975,29974,29980,29975,29974,29976,29975,29976,29977,29978,29985,29986,29986,29987,29986]} 1. e4 {[%emt 0:00:11]} c5 {[%emt 0:00:27]} 2. b3 {[%emt 0:00:02]} d6 {[%emt 0:01:11]} 3. Bb2 {[%emt 0:00:24]} e6 {[%emt 0:00:15]} 4. Nf3 {[%emt 0:00:54]} Nf6 {[%emt 0:00:07]} 5. e5 {[%emt 0:01:46]} dxe5 {[%emt 0:00:06]} 6. Nxe5 {[%emt 0:00:03]} a6 {[%emt 0:02:05] B50: Sicilian: 2...d6, Miscellaneous.} 7. f4 {[%emt 0:01:31]} Be7 {[%emt 0:02:46]} 8. Bd3 {[%emt 0:00:50] [#]} Qc7 $146 {[%emt 0:06:39] The position is equal.} ({Predecessor:} 8... Nbd7 9. Qf3 Qc7 10. O-O O-O 11. a4 Re8 12. Na3 b6 13. Rae1 Bb7 14. Qh3 Nf8 {0-1 (34) Leone,J (2096)-Justo,V (2110) Buenos Aires 2010}) 9. Qf3 {[%emt 0:00:42]} Nc6 {[%emt 0:14:56]} (9... Bd7 $11 {remains equal.}) 10. Nxc6 $16 {[%emt 0:01:00]} Qxc6 {[%emt 0:00:30]} 11. Qxc6+ {[%emt 0:00:08]} bxc6 {[%emt 0:00:02]} 12. O-O {[%emt 0:02:29]} O-O {[%emt 0:00:08]} 13. Na3 {[%emt 0:04:06]} (13. Be2 $16) 13... Rd8 {[%emt 0:02:05]} 14. Nc4 {[%emt 0:00:28]} Ra7 {[%emt 0:05:46]} ({Better is} 14... a5) 15. Na5 {[%emt 0:06:00]} Bd7 {[%emt 0:01:36]} 16. Rae1 {[%emt 0:00:58]} Be8 {[%emt 0:00:52]} 17. f5 {[%emt 0:04:56] 0x0.0019216519bcdp-1022s more active pieces.} exf5 {[%emt 0:00:27]} 18. Rxf5 {[%emt 0:00:20]} Rd5 {[%emt 0:00:16]} (18... Nd5 $16 {was necessary.} 19. Rfe5 h6) 19. Bxf6 $18 {[%emt 0:06:15]} gxf6 {[%emt 0:00:26]} 20. Be4 {[%emt 0:00:19]} Rxf5 {[%emt 0:07:06]} 21. Bxf5 {[%emt 0:00:06]} h6 {[%emt 0:00:14]} 22. Be4 {[%emt 0:09:42]} Bd8 {[%emt 0:08:55]} 23. Bxc6 {[%emt 0:02:24]} Bxa5 {[%emt 0:00:12]} (23... Bd7 $16 {keeps fighting.}) 24. Rxe8+ $16 {[%emt 0:00:04][%mdl 4096] Endgame KRB-KRB} Kg7 {[%emt 0:00:06]} 25. c3 {[%emt 0:00:21]} Bc7 {[%emt 0:00:11]} 26. Re4 {[%emt 0:03:34]} f5 {[%emt 0:00:38]} 27. Rc4 {[%emt 0:01:40]} Bb6 {[%emt 0:00:38]} 28. Kf1 {[%emt 0:06:34]} Rc7 {[%emt 0:00:52]} 29. Ba4 {[%emt 0:00:18]} Re7 {[%emt 0:01:56] [#]} 30. b4 $1 {[%emt 0:01:00]} cxb4 {[%emt 0:00:13]} 31. Rxb4 {[%emt 0:00:13]} Bc5 {[%emt 0:00:28]} 32. Rf4 {[%emt 0:05:48]} Bd6 {[%emt 0:02:00]} 33. Rxf5 {[%emt 0:00:53]} Bxh2 {[%emt 0:00:04]} 34. Kf2 {[%emt 0:00:18] [#] Prevents Bg3+. Strongly threatening g3.} Bc7 {[%emt 0:04:40]} 35. d4 {[%emt 0:04:45]} Bb6 {[%emt 0:02:04]} 36. Rf3 {[%emt 0:05:03]} Kg6 {[%emt 0:10:16]} 37. Bc2+ {[%emt 0:02:02]} Kg7 {[%emt 0:00:14]} 38. Bb3 {[%emt 0:02:18]} Kg6 {[%emt 0:00:18]} 39. Re3 {[%emt 0:02:50]} Rc7 {[%emt 0:00:16]} 40. Ke2 {[%emt 0:00:00]} Kg5 {[%emt 0:00:00]} 41. Rg3+ {[%emt 0:03:26]} Kf6 {[%emt 0:03:38]} 42. Rf3+ {[%emt 0:00:08]} Kg6 {[%emt 0:00:10]} 43. Kd3 {[%emt 0:05:36]} f5 {[%emt 0:02:45]} 44. Be6 {[%emt 0:01:15]} Ba5 {[%emt 0:02:06]} 45. Bxf5+ {[%emt 0:00:47]} Kg5 {[%emt 0:00:10]} 46. c4 {[%emt 0:00:10]} Rb7 $2 {[%emt 0:00:35]} (46... Rf7 47. Ke4 Re7+ 48. Kd5 Rf7) 47. Bc8 {[%emt 0:00:09]} Rb2 {[%emt 0:00:10]} 48. Rf5+ {[%emt 0:00:06]} Kh4 {[%emt 0:00:20]} 49. Rxa5 {[%emt 0:00:11]} Rxg2 {[%emt 0:00:09]} 50. Rxa6 $18 {[%emt 0:00:30] KRB-KR. White mates.} h5 {[%emt 0:00:06]} 51. Ra5 {[%emt 0:00:01]} Rg1 {[%emt 0:00:43]} 52. Re5 {[%emt 0:00:15]} Rd1+ {[%emt 0:02:23]} 53. Ke4 {[%emt 0:01:25]} Ra1 {[%emt 0:01:05]} 54. c5 {[%emt 0:00:00][%cal Bc4c5,Bc5c6][%mdl 32]} Rxa2 {[%emt 0:00:12]} 55. c6 {[%emt 0:00:00]} Rc2 {[%emt 0:02:58]} 56. Rc5 {[%emt 0:00:00]} Re2+ {[%emt 0:00:06] Weighted Error Value: White=0.08 (flawless) /Black=0.35} 1-0